[Event "6th Porticcio Open 2019"]
[Site "Porticcio"]
[Date "2019.07.05"]
[Round "8.6"]
[White "Boyer, Mahel"]
[Black "Kovchan, Alexander"]
[Result "1-0"]
[ECO "B20"]
[WhiteElo "2295"]
[BlackElo "2566"]
[Annotator "ChessBase"]
[PlyCount "93"]
[EventDate "2019.06.23"]
[EventType "swiss"]
[EventCountry "FRA"]
[SourceTitle "playchess.com"]
[Source "ChessBase"]
[SourceQuality "1"]
[TimeControl "5400+30"]

1. e4 {[%emt 0:00:00]} c5 {[%emt 0:00:00]} 2. d3 {[%emt 0:00:00]} Nc6 {[%emt 0:00:50]} 3. g3 {[%emt 0:00:00]} g6 {[%emt 0:00:25]} 4. Bg2 {[%emt 0:00:00]} Bg7 {[%emt 0:00:10]} 5. f4 {[%emt 0:00:00]} e6 {[%emt 0:00:29]} 6. Nf3 {[%emt 0:00:00]} Nge7 {[%emt 0:00:08]} 7. O-O {[%emt 0:00:00]} O-O {[%emt 0:00:09]} 8. c3 {[%emt 0:00:00]} b6 {[%emt 0:00:13]} 9. Be3 {[%emt 0:00:42]} Ba6 {[%emt 0:00:10]} 10. Na3 {[%emt 0:00:13]} Rc8 {[%emt 0:01:23]} 11. Bf2 {[%emt 0:00:18]} d6 {[%emt 0:05:27]} 12. Re1 {[%emt 0:00:08]} e5 {[%emt 0:05:12]} 13. d4 {[%emt 0:09:53]} cxd4 {[%emt 0:07:24]} 14. cxd4 {[%emt 0:02:37]} exf4 {[%emt 0:01:12]} 15. gxf4 {[%emt 0:00:36]} d5 {[%emt 0:01:02]} 16. e5 {[%emt 0:00:48]} Qd7 {[%emt 0:01:04]} 17. Nc2 {[%emt 0:04:09]} Qf5 {[%emt 0:08:17]} 18. Bh4 {[%emt 0:24:10]} Rfe8 {[%emt 0:19:23]} 19. Ne3 {[%emt 0:06:44]} Qd3 {[%emt 0:08:09]} 20. Bh3 {[%emt 0:03:16]} Rc7 {[%emt 0:00:43]} 21. Qxd3 {[%emt 0:06:41]} Bxd3 {[%emt 0:00:03]} 22. Rac1 {[%emt 0:00:10]} Rb7 {[%emt 0:02:12]} 23. f5 {[%emt 0:06:18]} gxf5 {[%emt 0:02:49]} 24. Nxf5 {[%emt 0:03:03]} Bxf5 {[%emt 0:07:50]} 25. Bxf5 {[%emt 0:00:05]} Nxe5 {[%emt 0:02:34]} 26. Bxh7+ {[%emt 0:05:00]} Kxh7 {[%emt 0:00:02]} 27. dxe5 {[%emt 0:00:12]} Nf5 {[%emt 0:01:57]} 28. Bg5 {[%emt 0:03:41]} Rd7 {[%emt 0:02:06]} 29. Kf2 {[%emt 0:04:40]} d4 {[%emt 0:03:31]} 30. Re4 {[%emt 0:00:41]} d3 {[%emt 0:00:15]} 31. Rf4 {[%emt 0:01:40]} Nh6 {[%emt 0:05:32]} 32. Rh4 {[%emt 0:01:36]} Re6 {[%emt 0:08:01]} 33. Bd2 {[%emt 0:04:50]} f6 {[%emt 0:01:24]} 34. Rg1 {[%emt 0:01:33]} Bf8 {[%emt 0:00:17]} 35. Rg3 {[%emt 0:00:06]} Rc6 {[%emt 0:02:21]} 36. e6 {[%emt 0:02:21]} Rxe6 {[%emt 0:00:14]} 37. Rgh3 {[%emt 0:00:06]} Kg6 {[%emt 0:02:06]} 38. Bxh6 {[%emt 0:01:24]} Re2+ {[%emt 0:01:12]} 39. Kf1 {[%emt 0:00:01]} Rc7 {[%emt 0:00:41]} 40. Rg3+ {[%emt 0:03:44]} Kf7 {[%emt 0:00:01]} 41. Bf4 {[%emt 0:00:13]} Rcc2 {[%emt 0:00:40]} 42. Nd4 Rf2+ {[%emt 0:01:09]} 43. Kg1 {[%emt 0:00:40]} Rxf4 {[%emt 0:01:03]} 44. Rxf4 {[%emt 0:02:41]} d2 {[%emt 0:00:47]} 45. Rd3 {[%emt 0:00:45]} Bc5 {[%emt 0:01:10]} 46. b4 {[%emt 0:01:22]} Bxb4 {[%emt 0:00:02]} 47. Nxc2 {[%emt 0:00:11]} 1-0

[Event "6th Porticcio Open 2019"]
[Site "Porticcio"]
[Date "2019.07.05"]
[Round "8.7"]
[White "Sengupta, Deep"]
[Black "Sanchez, Louis"]
[Result "1/2-1/2"]
[ECO "D00"]
[WhiteElo "2559"]
[BlackElo "2316"]
[Annotator "ChessBase"]
[PlyCount "133"]
[EventDate "2019.06.23"]
[EventType "swiss"]
[EventCountry "FRA"]
[SourceTitle "playchess.com"]
[Source "ChessBase"]
[SourceQuality "1"]
[TimeControl "5400+30"]

1. d4 {[%emt 0:00:00]} d5 {[%emt 0:00:00]} 2. Bf4 {[%emt 0:00:00]} Nf6 {[%emt 0:00:00]} 3. e3 {[%emt 0:00:00]} e6 {[%emt 0:00:04]} 4. Nd2 {[%emt 0:00:03]} Bd6 {[%emt 0:00:12]} 5. Bg3 {[%emt 0:00:11]} O-O {[%emt 0:00:15]} 6. Ngf3 {[%emt 0:00:08]} c5 {[%emt 0:01:09]} 7. c3 {[%emt 0:00:05]} Qc7 {[%emt 0:00:36]} 8. dxc5 {[%emt 0:01:10]} Qxc5 {[%emt 0:00:55]} 9. Bd3 {[%emt 0:00:06]} Nbd7 {[%emt 0:01:25]} 10. Qc2 {[%emt 0:01:47]} h6 {[%emt 0:02:03]} 11. O-O-O {[%emt 0:07:23]} Bxg3 {[%emt 0:07:52]} 12. hxg3 {[%emt 0:00:06]} Qc7 {[%emt 0:00:03]} 13. e4 {[%emt 0:10:59]} dxe4 {[%emt 0:01:43]} 14. Nxe4 {[%emt 0:00:03]} Nxe4 {[%emt 0:02:08]} 15. Bxe4 {[%emt 0:00:02]} Nf6 {[%emt 0:04:10]} 16. Rhe1 {[%emt 0:03:58]} Bd7 {[%emt 0:12:23]} 17. Ne5 {[%emt 0:00:33]} Rfd8 {[%emt 0:01:10]} 18. f4 {[%emt 0:08:36]} Be8 {[%emt 0:02:26]} 19. Bf3 {[%emt 0:01:26]} Nd7 {[%emt 0:00:51]} 20. Nxd7 {[%emt 0:13:46]} Bxd7 {[%emt 0:01:41]} 21. Qf2 {[%emt 0:04:15]} Qa5 {[%emt 0:30:39]} 22. Kb1 {[%emt 0:00:59]} Bc6 {[%emt 0:03:30]} 23. Re5 {[%emt 0:10:23]} Qa4 {[%emt 0:03:11]} 24. b3 {[%emt 0:03:19]} Rxd1+ {[%emt 0:01:16]} 25. Bxd1 {[%emt 0:00:05]} Qa3 {[%emt 0:00:40]} 26. Bc2 {[%emt 0:04:44]} Rd8 {[%emt 0:05:55]} 27. Re1 {[%emt 0:01:48]} Qa5 {[%emt 0:02:01]} 28. Kb2 {[%emt 0:01:12]} Qb6 {[%emt 0:02:47]} 29. Qxb6 {[%emt 0:05:59]} axb6 {[%emt 0:00:01]} 30. Re2 {[%emt 0:00:01]} Kf8 {[%emt 0:00:24]} 31. a4 {[%emt 0:00:25]} Ke7 {[%emt 0:00:44]} 32. c4 {[%emt 0:01:12]} g5 {[%emt 0:02:52]} 33. f5 {[%emt 0:00:53]} Kf6 {[%emt 0:02:08]} 34. fxe6 {[%emt 0:01:47]} fxe6 {[%emt 0:00:02]} 35. b4 {[%emt 0:03:31]} Rd4 {[%emt 0:01:41]} 36. b5 {[%emt 0:00:08]} Bd7 {[%emt 0:00:19]} 37. Kc3 {[%emt 0:00:13]} e5 {[%emt 0:00:28]} 38. Rd2 {[%emt 0:04:04]} Rxd2 {[%emt 0:03:30]} 39. Kxd2 {[%emt 0:00:03]} Ke7 {[%emt 0:01:57]} 40. Kc3 {[%emt 0:00:05]} Kd6 {[%emt 0:00:13]} 41. Kb4 {[%emt 0:00:05]} Bc8 {[%emt 0:01:05]} 42. Be4 {[%emt 0:00:11]} h5 {[%emt 0:00:46]} 43. Bf3 {[%emt 0:01:58]} h4 {[%emt 0:00:24]} 44. gxh4 {[%emt 0:00:05]} gxh4 {[%emt 0:00:05]} 45. Be4 {[%emt 0:00:04]} Kc7 {[%emt 0:00:58]} 46. c5 {[%emt 0:01:08]} bxc5+ {[%emt 0:00:30]} 47. Kxc5 {[%emt 0:00:02]} b6+ {[%emt 0:00:11]} 48. Kd5 {[%emt 0:00:57]} h3 {[%emt 0:00:23]} 49. gxh3 {[%emt 0:00:11]} Bxh3 {[%emt 0:00:05]} 50. Kxe5 {[%emt 0:00:04]} Bf1 {[%emt 0:00:58]} 51. Bc2 {[%emt 0:00:22]} Be2 {[%emt 0:00:10]} 52. Kd5 {[%emt 0:00:04]} Bf1 {[%emt 0:00:10]} 53. Bd1 {[%emt 0:00:07]} Bd3 {[%emt 0:00:09]} 54. Kd4 {[%emt 0:00:03]} Bf1 {[%emt 0:00:19]} 55. Kc3 {[%emt 0:00:04]} Kd6 {[%emt 0:00:19]} 56. Kb4 {[%emt 0:00:03]} Kc7 {[%emt 0:00:15]} 57. Bf3 {[%emt 0:00:04]} Kd6 {[%emt 0:00:15]} 58. Be4 {[%emt 0:00:09]} Be2 {[%emt 0:00:10]} 59. Bc2 {[%emt 0:00:11]} Kc7 {[%emt 0:00:27]} 60. Bb3 {[%emt 0:00:06]} Bf1 {[%emt 0:00:16]} 61. Bc4 {[%emt 0:00:03]} Bg2 {[%emt 0:00:19]} 62. a5 {[%emt 0:00:04]} bxa5+ {[%emt 0:00:22]} 63. Kxa5 {[%emt 0:00:05]} Kb8 {[%emt 0:00:29]} 64. Kb6 {[%emt 0:00:06]} Be4 {[%emt 0:00:14]} 65. Be6 {[%emt 0:00:05]} Bd3 {[%emt 0:00:13]} 66. Kc5 {[%emt 0:00:03]} Bxb5 {[%emt 0:00:12]} 67. Kxb5 1/2-1/2

[Event "6th Porticcio Open 2019"]
[Site "Porticcio"]
[Date "2019.07.05"]
[Round "8.8"]
[White "Zhigalko, Sergei"]
[Black "Defromont, Benjamin"]
[Result "1-0"]
[ECO "C95"]
[WhiteElo "2594"]
[BlackElo "2218"]
[Annotator "ChessBase"]
[PlyCount "73"]
[EventDate "2019.06.23"]
[EventType "swiss"]
[EventCountry "FRA"]
[SourceTitle "playchess.com"]
[Source "ChessBase"]
[SourceQuality "1"]
[TimeControl "5400+30"]

1. e4 {[%emt 0:00:00]} e5 {[%emt 0:00:31]} 2. Nf3 {[%emt 0:00:00]} Nc6 {[%emt 0:00:06]} 3. Bb5 {[%emt 0:00:00]} a6 {[%emt 0:00:07]} 4. Ba4 {[%emt 0:00:00]} Nf6 {[%emt 0:00:06]} 5. O-O {[%emt 0:00:00]} Be7 {[%emt 0:00:06]} 6. Re1 {[%emt 0:00:00]} b5 {[%emt 0:00:09]} 7. Bb3 {[%emt 0:00:00]} d6 {[%emt 0:00:08]} 8. c3 {[%emt 0:00:00]} O-O {[%emt 0:00:10]} 9. h3 {[%emt 0:00:03]} Nb8 {[%emt 0:00:26]} 10. d4 {[%emt 0:00:19]} Nbd7 {[%emt 0:00:17]} 11. Nbd2 {[%emt 0:00:18]} Bb7 {[%emt 0:00:09]} 12. Bc2 {[%emt 0:00:24]} Re8 {[%emt 0:00:10]} 13. Nf1 {[%emt 0:01:28]} Bf8 {[%emt 0:00:19]} 14. Ng3 {[%emt 0:09:10]} exd4 {[%emt 0:00:48]} 15. cxd4 {[%emt 0:00:55]} c5 {[%emt 0:00:08]} 16. d5 {[%emt 0:03:39]} g6 17. b3 {[%emt 0:01:21]} Bg7 {[%emt 0:02:06]} 18. Bf4 {[%emt 0:09:41]} Nb6 {[%emt 0:04:13]} 19. Qd2 {[%emt 0:00:52]} a5 {[%emt 0:07:31]} 20. Bd3 {[%emt 0:01:48]} b4 {[%emt 0:18:53]} 21. Bb5 {[%emt 0:16:39]} Rf8 {[%emt 0:07:42]} 22. Rad1 {[%emt 0:01:59]} a4 {[%emt 0:06:54]} 23. Bc6 {[%emt 0:03:25]} Ra7 {[%emt 0:04:03]} 24. Qc1 {[%emt 0:00:10]} axb3 {[%emt 0:09:05]} 25. axb3 {[%emt 0:00:01]} Qb8 {[%emt 0:02:32]} 26. Bxd6 {[%emt 0:07:16]} Qxd6 {[%emt 0:02:21]} 27. e5 {[%emt 0:00:02]} Qc7 {[%emt 0:01:01]} 28. exf6 {[%emt 0:00:13]} Bxf6 {[%emt 0:00:10]} 29. Ne4 {[%emt 0:01:51]} Bg7 {[%emt 0:03:33]} 30. Qxc5 {[%emt 0:00:13]} Bxc6 {[%emt 0:03:50]} 31. dxc6 {[%emt 0:00:32]} Rc8 {[%emt 0:00:26]} 32. Qxb4 {[%emt 0:03:22]} Bf8 {[%emt 0:00:35]} 33. Nf6+ {[%emt 0:01:28]} Kh8 {[%emt 0:00:54]} 34. Qh4 {[%emt 0:00:13]} h6 {[%emt 0:00:12]} 35. Ne5 {[%emt 0:00:58]} Bg7 {[%emt 0:01:41]} 36. Rd7 {[%emt 0:00:59]} Nxd7 {[%emt 0:00:02]} 37. Nxf7# {[%emt 0:00:08]} 1-0

[Event "6th Porticcio Open 2019"]
[Site "Porticcio"]
[Date "2019.07.06"]
[Round "9.1"]
[White "Lagarde, Maxime"]
[Black "Prithu Gupta"]
[Result "1-0"]
[ECO "A20"]
[WhiteElo "2599"]
[BlackElo "2470"]
[Annotator "ChessBase"]
[PlyCount "141"]
[EventDate "2019.06.23"]
[EventType "swiss"]
[EventCountry "FRA"]
[SourceTitle "playchess.com"]
[Source "ChessBase"]
[SourceQuality "1"]
[TimeControl "5400+30"]

1. c4 {[%emt 0:03:08]} e5 {[%emt 0:00:00]} 2. g3 {[%emt 0:00:20]} c6 {[%emt 0:00:00]} 3. Nf3 {[%emt 0:00:03]} e4 {[%emt 0:00:00]} 4. Nd4 {[%emt 0:00:03]} d5 {[%emt 0:00:00]} 5. cxd5 {[%emt 0:00:21]} Qxd5 {[%emt 0:00:00]} 6. Nc2 {[%emt 0:00:04]} Nf6 {[%emt 0:00:00]} 7. Nc3 {[%emt 0:00:39]} Qe5 {[%emt 0:00:05]} 8. Bg2 {[%emt 0:00:06]} Na6 {[%emt 0:00:02]} 9. O-O {[%emt 0:00:23]} Be7 {[%emt 0:01:06]} 10. f3 {[%emt 0:08:07]} exf3 {[%emt 0:01:44]} 11. Bxf3 {[%emt 0:01:33]} Bg4 {[%emt 0:06:53]} 12. d4 {[%emt 0:03:23]} Qh5 {[%emt 0:00:13]} 13. e4 {[%emt 0:02:08]} Rd8 {[%emt 0:03:29]} 14. Qe2 {[%emt 0:09:29]} O-O {[%emt 0:04:12]} 15. Bxg4 {[%emt 0:03:52]} Qxg4 {[%emt 0:00:18]} 16. Qg2 {[%emt 0:01:07]} Qd7 {[%emt 0:02:33]} 17. Bg5 {[%emt 0:17:40]} Nb4 {[%emt 0:07:00]} 18. Rad1 {[%emt 0:02:12]} Ng4 {[%emt 0:04:12]} 19. Bf4 {[%emt 0:05:59]} Nxc2 {[%emt 0:04:13]} 20. Qxc2 {[%emt 0:00:03]} c5 {[%emt 0:00:18]} 21. Nd5 {[%emt 0:04:24]} cxd4 {[%emt 0:02:09]} 22. Rxd4 {[%emt 0:00:53]} Rc8 {[%emt 0:00:21]} 23. Nxe7+ {[%emt 0:00:49]} Qxe7 {[%emt 0:00:09]} 24. Qd2 {[%emt 0:01:19]} Ne5 {[%emt 0:03:09]} 25. Rd5 {[%emt 0:00:41]} f6 {[%emt 0:04:59]} 26. Bxe5 {[%emt 0:04:02]} fxe5 {[%emt 0:00:04]} 27. Rxf8+ {[%emt 0:00:22]} Rxf8 {[%emt 0:00:09]} 28. Kg2 {[%emt 0:02:12]} Qf6 {[%emt 0:00:54]} 29. Qe2 {[%emt 0:00:06]} Qe6 {[%emt 0:00:45]} 30. Qb5 {[%emt 0:01:59]} Qh6 {[%emt 0:10:33]} 31. Rxe5 {[%emt 0:05:00]} Qd2+ {[%emt 0:00:40]} 32. Kh3 {[%emt 0:00:06]} Qh6+ {[%emt 0:01:24]} 33. Rh5 {[%emt 0:01:17]} Qe6+ {[%emt 0:00:15]} 34. Rf5 {[%emt 0:00:12]} Qh6+ {[%emt 0:02:42]} 35. Kg4 {[%emt 0:02:49]} Qg6+ {[%emt 0:01:28]} 36. Kf3 {[%emt 0:00:25]} Qh5+ {[%emt 0:00:10]} 37. Kg2 {[%emt 0:00:29]} Rxf5 {[%emt 0:00:28]} 38. exf5 {[%emt 0:01:56]} h6 {[%emt 0:01:08]} 39. Qc4+ {[%emt 0:03:04]} Kh8 {[%emt 0:00:21]} 40. f6 {[%emt 0:00:55]} gxf6 {[%emt 0:01:02]} 41. Qc8+ {[%emt 0:00:06]} Kg7 {[%emt 0:00:10]} 42. Qxb7+ {[%emt 0:00:04]} Kg6 {[%emt 0:00:18]} 43. Qe4+ {[%emt 0:00:12]} Kf7 {[%emt 0:00:37]} 44. Qc4+ {[%emt 0:02:08]} Kg7 {[%emt 0:00:14]} 45. b4 {[%emt 0:00:24]} Qd1 {[%emt 0:00:51]} 46. b5 {[%emt 0:01:35]} h5 {[%emt 0:00:36]} 47. a4 {[%emt 0:01:39]} Qd2+ {[%emt 0:07:46]} 48. Kh3 {[%emt 0:00:10]} Qd7+ {[%emt 0:00:11]} 49. g4 {[%emt 0:00:51]} Qd1 {[%emt 0:00:05]} 50. Qf4 {[%emt 0:00:40]} Qb3+ {[%emt 0:04:54]} 51. Kh4 {[%emt 0:04:28]} hxg4 {[%emt 0:00:08]} 52. Qxg4+ {[%emt 0:00:12]} Kf7 {[%emt 0:01:49]} 53. Qd4 {[%emt 0:00:55]} Kg6 {[%emt 0:00:31]} 54. Qe4+ {[%emt 0:01:58]} Kg7 {[%emt 0:00:28]} 55. Kg4 {[%emt 0:01:37]} Qd1+ {[%emt 0:00:11]} 56. Kg3 {[%emt 0:02:20]} Qd6+ {[%emt 0:01:34]} 57. Kh3 {[%emt 0:02:44]} Qc5 {[%emt 0:00:12]} 58. Kg2 {[%emt 0:00:16]} Qa3 {[%emt 0:01:40]} 59. h4 {[%emt 0:00:15]} Qb2+ {[%emt 0:00:34]} 60. Kf3 {[%emt 0:00:36]} Qc3+ {[%emt 0:02:00]} 61. Qe3 {[%emt 0:00:15]} Qa5 {[%emt 0:00:04]} 62. Qd4 {[%emt 0:00:46]} Kg6 {[%emt 0:00:25]} 63. Qe4+ {[%emt 0:01:10]} f5 {[%emt 0:01:03]} 64. Qe6+ {[%emt 0:00:37]} Kg7 {[%emt 0:00:06]} 65. Qe7+ {[%emt 0:00:09]} Kg8 {[%emt 0:00:25]} 66. Qg5+ {[%emt 0:00:37]} Kh8 {[%emt 0:00:10]} 67. Qf6+ {[%emt 0:00:06]} Kg8 {[%emt 0:00:05]} 68. Qxf5 {[%emt 0:00:21]} Qc3+ {[%emt 0:00:22]} 69. Kg4 {[%emt 0:00:12]} Qc4+ {[%emt 0:00:19]} 70. Kg5 {[%emt 0:00:39]} Qxa4 {[%emt 0:00:24]} 71. Qg4 {[%emt 0:02:01]} 1-0

[Event "6th Porticcio Open 2019"]
[Site "Porticcio"]
[Date "2019.07.06"]
[Round "9.2"]
[White "Onischuk, Vladimir"]
[Black "Sadhwani, Raunak"]
[Result "1/2-1/2"]
[ECO "C24"]
[WhiteElo "2630"]
[BlackElo "2482"]
[Annotator "RC"]
[PlyCount "100"]
[EventDate "2019.06.23"]
[EventType "swiss"]
[EventCountry "FRA"]
[SourceTitle "playchess.com"]
[Source "ChessBase"]
[SourceQuality "1"]
[TimeControl "5400+30"]

1. e4 {[%emt 0:01:23]} e5 {[%emt 0:00:00]} 2. Bc4 {[%emt 0:00:17]} Nf6 {[%emt 0:00:00]} 3. d3 {[%emt 0:00:05]} c6 {[%emt 0:00:00]} 4. Nf3 {[%emt 0:00:19]} d5 {[%emt 0:00:00]} 5. Bb3 {[%emt 0:00:11]} Bb4+ {[%emt 0:00:00]} 6. Bd2 {[%emt 0:01:43]} Bxd2+ {[%emt 0:00:00]} 7. Nbxd2 {[%emt 0:00:09]} a5 {[%emt 0:01:24]} 8. a4 {[%emt 0:09:33]} Nbd7 {[%emt 0:01:03]} 9. O-O {[%emt 0:01:53]} O-O {[%emt 0:00:27]} 10. Re1 {[%emt 0:05:49]} Re8 {[%emt 0:00:32]} 11. exd5 {[%emt 0:02:15]} cxd5 {[%emt 0:00:13]} 12. Nf1 {[%emt 0:00:35]} Qc7 {[%emt 0:01:35]} 13. Ne3 {[%emt 0:11:58]} Nb6 {[%emt 0:00:04]} 14. d4 {[%emt 0:01:00]} e4 {[%emt 0:01:51]} 15. Ne5 {[%emt 0:03:11]} Be6 {[%emt 0:00:14]} 16. f4 {[%emt 0:02:06]} exf3 {[%emt 0:00:42]} 17. Qxf3 {[%emt 0:00:07]} Nbd7 {[%emt 0:00:56]} 18. Nxd7 {[%emt 0:11:25]} Qxd7 {[%emt 0:00:42]} 19. c3 {[%emt 0:00:20]} Qd6 {[%emt 0:04:25]} 20. Re2 {[%emt 0:04:20]} Re7 {[%emt 0:01:17]} 21. Rae1 {[%emt 0:02:02]} Rae8 {[%emt 0:00:33]} 22. h3 {[%emt 0:00:12]} Kf8 {[%emt 0:02:59]} 23. Nd1 {[%emt 0:07:32]} Ne4 {[%emt 0:12:52]} 24. Bc2 {[%emt 0:03:40]} Nf6 {[%emt 0:00:14]} 25. Nf2 {[%emt 0:09:15]} Bd7 {[%emt 0:00:20]} 26. Rxe7 {[%emt 0:04:11]} Rxe7 {[%emt 0:00:10]} 27. Rxe7 {[%emt 0:03:01]} Qxe7 {[%emt 0:00:08]} 28. Nd3 {[%emt 0:00:28]} Qe8 {[%emt 0:00:11]} 29. b3 {[%emt 0:06:26]} Qe4 {[%emt 0:02:57]} 30. Qf2 {[%emt 0:01:06]} Qe7 {[%emt 0:00:29]} 31. Ne5 {[%emt 0:02:18]} Be6 {[%emt 0:00:14]} 32. c4 {[%emt 0:03:17]} Qb4 {[%emt 0:00:27]} 33. c5 {[%emt 0:01:02]} Qc3 {[%emt 0:00:21]} 34. Nf3 {[%emt 0:00:42]} Ne4 {[%emt 0:02:44]} 35. Qe2 {[%emt 0:00:41]} Bf5 {[%emt 0:00:48]} 36. Kh2 {[%emt 0:00:08]} h5 {[%emt 0:02:55]} 37. Bd3 {[%emt 0:01:31]} Qxb3 {[%emt 0:03:20]} 38. Ne5 {[%emt 0:00:04]} g6 {[%emt 0:00:24]} 39. g4 {[%emt 0:00:09]} hxg4 {[%emt 0:00:10]} 40. hxg4 {[%emt 0:00:02]} Be6 {[%emt 0:00:11]} 41. Bxe4 {[%emt 0:00:26]} dxe4 {[%emt 0:00:16]} 42. Qxe4 {[%emt 0:00:09]} Qxa4 {[%emt 0:03:22]} 43. Nxg6+ {[%emt 0:01:59]} fxg6 {[%emt 0:00:10]} 44. Qxe6 {[%emt 0:00:04]} Qxd4 {[%emt 0:00:40]} 45. Qc8+ {[%emt 0:00:06]} Kg7 {[%emt 0:00:06]} 46. Qxb7+ {[%emt 0:00:12]} Kh6 {[%emt 0:00:05]} 47. c6 {[%emt 0:02:00]} Qf2+ {[%emt 0:00:05]} 48. Kh3 {[%emt 0:00:05]} Qf3+ {[%emt 0:00:03]} 49. Kh2 {[%emt 0:00:03]} Qf2+ {[%emt 0:00:03]} 50. Kh3 {[%emt 0:00:03]} Qf3+ {[%emt 0:00:03]} 1/2-1/2

[Event "6th Porticcio Open 2019"]
[Site "Porticcio"]
[Date "2019.07.06"]
[Round "9.3"]
[White "Krasenkow, Michal"]
[Black "Donchenko, Alexander"]
[Result "1-0"]
[ECO "D02"]
[WhiteElo "2620"]
[BlackElo "2618"]
[Annotator "RC"]
[PlyCount "87"]
[EventDate "2019.06.23"]
[EventType "swiss"]
[EventCountry "FRA"]
[SourceTitle "playchess.com"]
[Source "ChessBase"]
[SourceQuality "1"]
[TimeControl "5400+30"]

1. Nf3 {[%emt 0:00:00]} d5 {[%emt 0:00:06]} 2. d4 {[%emt 0:00:00]} Nf6 {[%emt 0:00:06]} 3. c4 {[%emt 0:00:00]} e6 {[%emt 0:00:06]} 4. g3 {[%emt 0:00:00]} Bb4+ {[%emt 0:00:54]} 5. Bd2 {[%emt 0:00:00]} Be7 {[%emt 0:02:16]} 6. Bg2 {[%emt 0:00:11]} O-O {[%emt 0:00:06]} 7. O-O {[%emt 0:00:03]} Nbd7 {[%emt 0:00:47]} 8. Qb3 {[%emt 0:03:07]} c6 {[%emt 0:02:15]} 9. Bg5 {[%emt 0:00:08]} b6 {[%emt 0:03:05]} 10. Rd1 {[%emt 0:00:09]} Bb7 {[%emt 0:04:06]} 11. Nc3 {[%emt 0:00:25]} Rc8 {[%emt 0:04:22]} 12. Rac1 {[%emt 0:04:52]} h6 {[%emt 0:11:27]} 13. Bxf6 {[%emt 0:01:17]} Nxf6 {[%emt 0:00:07]} 14. Ne5 {[%emt 0:00:13]} Nd7 {[%emt 0:14:36]} 15. Nxd7 {[%emt 0:02:19]} Qxd7 {[%emt 0:00:02]} 16. e4 {[%emt 0:00:10]} dxc4 {[%emt 0:01:57]} 17. Qxc4 {[%emt 0:01:06]} c5 {[%emt 0:02:06]} 18. d5 {[%emt 0:02:37]} Bf6 {[%emt 0:01:52]} 19. e5 {[%emt 0:04:47]} Bxe5 {[%emt 0:05:12]} 20. dxe6 {[%emt 0:00:48]} Qe7 {[%emt 0:00:01]} 21. Rd7 {[%emt 0:04:27]} Qg5 {[%emt 0:00:07]} 22. exf7+ {[%emt 0:01:53]} Kh8 {[%emt 0:00:02]} 23. f4 {[%emt 0:01:54]} Bd4+ {[%emt 0:00:34]} 24. Qxd4 {[%emt 0:03:07]} cxd4 {[%emt 0:01:17]} 25. fxg5 {[%emt 0:00:07]} Bxg2 {[%emt 0:00:12]} 26. Kxg2 {[%emt 0:01:03]} dxc3 {[%emt 0:00:05]} 27. Rxc3 {[%emt 0:00:49]} Rxc3 {[%emt 0:00:19]} 28. bxc3 {[%emt 0:00:39]} hxg5 {[%emt 0:00:05]} 29. Rxa7 {[%emt 0:01:09]} g6 {[%emt 0:00:06]} 30. Rb7 {[%emt 0:02:18]} Kg7 {[%emt 0:00:06]} 31. Rxb6 {[%emt 0:00:10]} Rxf7 {[%emt 0:00:58]} 32. a4 {[%emt 0:00:40]} Ra7 {[%emt 0:00:45]} 33. Rb4 {[%emt 0:00:40]} Kf6 {[%emt 0:00:15]} 34. Kf3 {[%emt 0:00:41]} Rh7 {[%emt 0:00:09]} 35. a5 {[%emt 0:00:58]} Rxh2 {[%emt 0:00:06]} 36. Ra4 {[%emt 0:00:13]} Rc2 {[%emt 0:00:57]} 37. a6 {[%emt 0:02:12]} Rxc3+ {[%emt 0:00:03]} 38. Kg4 {[%emt 0:00:06]} Rc8 {[%emt 0:00:21]} 39. a7 {[%emt 0:00:05]} Ra8 {[%emt 0:00:04]} 40. Ra6+ {[%emt 0:00:05]} Kg7 {[%emt 0:01:06]} 41. Kxg5 {[%emt 0:00:05]} Kh7 {[%emt 0:00:09]} 42. g4 {[%emt 0:00:05]} Kh8 {[%emt 0:00:54]} 43. Kxg6 {[%emt 0:00:11]} Rg8+ {[%emt 0:00:10]} 44. Kf7 {[%emt 0:00:24]} 1-0

[Event "6th Porticcio Open 2019"]
[Site "Porticcio"]
[Date "2019.07.06"]
[Round "9.4"]
[White "Vocaturo, Daniele"]
[Black "Boyer, Mahel"]
[Result "1-0"]
[ECO "C11"]
[WhiteElo "2612"]
[BlackElo "2295"]
[Annotator "RC"]
[PlyCount "71"]
[EventDate "2019.06.23"]
[EventType "swiss"]
[EventCountry "FRA"]
[SourceTitle "playchess.com"]
[Source "ChessBase"]
[SourceQuality "1"]
[TimeControl "5400+30"]

1. e4 {[%emt 0:00:00]} e6 {[%emt 0:00:06]} 2. d4 {[%emt 0:00:18]} d5 {[%emt 0:00:03]} 3. Nc3 {[%emt 0:00:59]} Nf6 {[%emt 0:00:04]} 4. e5 {[%emt 0:00:59]} Nfd7 {[%emt 0:00:04]} 5. f4 {[%emt 0:00:15]} c5 {[%emt 0:00:04]} 6. Nf3 {[%emt 0:00:10]} Nc6 {[%emt 0:00:09]} 7. Be3 {[%emt 0:00:19]} Be7 {[%emt 0:00:03]} 8. Qd2 {[%emt 0:00:31]} O-O {[%emt 0:00:16]} 9. h4 {[%emt 0:03:22]} cxd4 {[%emt 0:09:08]} 10. Nxd4 {[%emt 0:00:33]} Bxh4+ {[%emt 0:00:56]} 11. Kd1 {[%emt 0:01:52]} Nxd4 {[%emt 0:04:39]} 12. Bxd4 {[%emt 0:01:34]} f5 {[%emt 0:04:05]} 13. Bd3 {[%emt 0:05:56]} Be7 {[%emt 0:17:57]} 14. g4 {[%emt 0:01:32]} Nc5 {[%emt 0:00:33]} 15. Qh2 {[%emt 0:03:15]} h6 {[%emt 0:00:15]} 16. Ke2 {[%emt 0:12:30]} Nxd3 {[%emt 0:07:18]} 17. cxd3 {[%emt 0:00:35]} Kh7 18. Rag1 b6 {[%emt 0:24:46]} 19. gxf5 {[%emt 0:05:28]} Rxf5 {[%emt 0:01:10]} 20. Qg3 {[%emt 0:05:05]} Qf8 {[%emt 0:01:02]} 21. Qg6+ {[%emt 0:06:11]} Kh8 {[%emt 0:00:46]} 22. Nxd5 {[%emt 0:05:45]} exd5 {[%emt 0:08:06]} 23. e6 {[%emt 0:05:10]} Rf6 {[%emt 0:00:08]} 24. Bxf6 {[%emt 0:10:08]} Bxf6 {[%emt 0:00:04]} 25. Rh2 {[%emt 0:00:55]} Bxe6 {[%emt 0:01:10]} 26. Rgh1 {[%emt 0:00:23]} Bh3 {[%emt 0:03:17]} 27. Rxh3 {[%emt 0:01:19]} Qe8+ {[%emt 0:00:21]} 28. Qxe8+ {[%emt 0:00:09]} Rxe8+ {[%emt 0:00:01]} 29. Re3 {[%emt 0:00:31]} Rc8 {[%emt 0:01:21]} 30. Kf3 {[%emt 0:04:30]} Bxb2 {[%emt 0:01:38]} 31. Rh5 {[%emt 0:00:10]} Rc5 {[%emt 0:00:40]} 32. Re8+ {[%emt 0:00:13]} Kh7 {[%emt 0:00:04]} 33. Rd8 {[%emt 0:00:07]} Ra5 {[%emt 0:00:13]} 34. Rdxd5 {[%emt 0:00:26]} Rxa2 {[%emt 0:00:05]} 35. Rh2 {[%emt 0:00:16]} a6 {[%emt 0:00:28]} 36. Rc2 {[%emt 0:02:12]} 1-0